Cogmind - Beta 16.1 @@@ ROGUE MODE // 2026.03.07 @ 14:36:20 Player: JuustuToug Result: Destroyed by Y-45 Defender with Heavy Assault Rifle Performance ------------- Evolutions (0) 0 Regions Visited (2) 400 Robots Destroyed (57) 285 Value Destroyed (1022) 1022 Prototype IDs (2) 40 Alien Tech Used (0) 0 Bonus (0) 0 TOTAL SCORE: 1747 Bonus ------- None Cogmind --------- Core Integrity 0/250 Matter 274/300 Energy 246/250 System Corruption 0% Temperature Hot (248) Movement Treading (240) Ox1 Location -10/Mines Parts ------- > --- POWER (1) -------- Ion Engine > --- PROPULSION (2) --- Light Treads Aluminum Leg > --- UTILITY (2) ------ Large Storage Unit Seismic Detector > --- WEAPON (2) ------- Beam Cannon Light Assault Rifle > --- INVENTORY (15) --- Ion Engine Aluminum Leg Compact Wheel Improved Heat Sink Signal Interpreter Hacking Suite Small Laser Small Laser Beam Cannon Light Assault Rifle Light Assault Rifle Grenade Launcher Peak State ------------ > --- POWER ------------ Ion Engine > --- PROPULSION ------- Light Treads Light Treads > --- UTILITY ---------- Heat Sink Large Storage Unit > --- WEAPON ----------- Small Laser Assault Rifle > --- INVENTORY -------- Ion Engine Ion Engine Heat Sink Improved Heat Sink Seismic Detector Small Laser Assault Rifle Grenade Launcher [Rating: 8] Favorites ----------- Power Ion Engine Engine Ion Engine Propulsion Light Treads Treads Light Treads Leg Aluminum Leg Utility Large Storage Unit Device Heat Sink Storage Large Storage Unit Weapon Beam Cannon Energy Gun Small Laser Energy Cannon Beam Cannon Ballistic Gun Assault Rifle Launcher Grenade Launcher Build | -11 -10 -10 ------- Run | Yrd Mat Min Slots Evolved . | . . . Power . | . . . Propulsion . | . . . Utility . | . . . Weapon . | . . . Parts Attached 24 | 7 14 3 Power 5 | 1 4 . Engine 5 | 1 4 . Core . | . . . Reactor . | . . . Propulsion 4 | 2 1 1 Treads 3 | 2 1 . Leg 1 | . . 1 Wheel . | . . . Hover . | . . . Flight . | . . . Utility 8 | 2 5 1 Device 5 | 1 3 1 Storage 3 | 1 2 . Processor . | . . . Hackware . | . . . Protection . | . . . Artifact . | . . . Weapon 7 | 2 4 1 Energy Gun 2 | 1 1 . Energy Cannon 1 | . 1 . Ballistic Gun 3 | 1 2 . Ballistic Cannon . | . . . Launcher 1 | . . 1 Special Weapon . | . . . Impact Weapon . | . . . Slashing Weapon . | . . . Piercing Weapon . | . . . Special Melee Weapon . | . . . Unidentified Prototypes . | . . . Parts Lost 3 | . 2 1 Power . | . . . Propulsion 1 | . . 1 Utility 1 | . 1 . Weapon 1 | . 1 . Highest Loss Streak 2 | . 2 1 To Critical Strikes . | . . . Average Backups 12 | 1 13 12 Power 1 | . 1 1 Propulsion 2 | . 2 2 Utility 2 | . 2 3 Weapon 5 | . 5 6 Tool/Special . | . . . Unused Backups 14 | . 4 10 Power 1 | . . 1 Propulsion 4 | . 2 2 Utility 4 | . 1 3 Weapon 5 | . 1 4 Tool/Special . | . . . Average Slot Usage (%) 99 | . 100 99 Engine 14 | . 14 14 Treads 27 | . 28 27 Device 14 | . 14 14 Storage 14 | . 14 14 Energy Gun 2 | . 2 . Energy Cannon 11 | . 11 14 Ballistic Gun 14 | . 14 14 Peak Build Rating 8 | 7 8 8 Average Rating 7 | 5 7 7 On Entrance 5 | . 7 8 Avg Prop Armor Cover (%) . | . . . Naked Turns . | . . . Heaviest Build 31 | 14 31 30 Greatest Support 40 | 40 40 40 Greatest Overweight (x) . | . . . Average Overweight (x) . | . . . Largest Inventory Capacity 15 | 8 15 15 Average Capacity 14 | 7 14 15 Most Carried 15 | 2 15 13 Average Carried 12 | 1 13 12 Final Capacity 15 | 8 15 15 Final Carried 13 | 2 13 12 Class Distribution -------------------- 63% | Mutant 36% | Scavenger-Mutant Dominant Class ---------------- Mutant | -10/Materials Scavenger-Mutant | -10/Mines Resources | -11 -10 -10 ----------- Run | Yrd Mat Min Matter Collected 892 | 265 562 65 Remotely . | . . . Salvage Created 1764 | 286 1270 208 Parts 133 | 26 86 21 Haulers Intercepted 2 | . 2 . Recyclers Shooed 2 | 1 1 . Parts Field Recycled . | . . . Retrieved Matter . | . . . Parts Self-Destructed . | . . . Prevented . | . . . Parts Restored . | . . . Kills | -11 -10 -10 ------- Run | Yrd Mat Min Combat Hostiles Destroyed 28 | . 22 6 Guns 16 | . 15 1 Cannons 7 | . 7 . AOE 5 | . . 5 Classes Destroyed 10 | 3 6 1 Worker 5 | 2 3 . Builder 1 | . 1 . Tunneler 13 | 8 2 3 Hauler 2 | . 2 . Recycler 3 | 1 2 . Operator 2 | . 2 . Watcher 3 | . 3 . Swarmer 9 | . 6 3 Grunt 18 | . 16 2 Sentry 1 | . . 1 Best Kill Streak 5 | 5 3 5 Combat Bots Only 5 | . 3 5 Max Kills in Single Turn 3 | 1 1 3 Gunslinging . | . . . Exploded 3 | . . 3 Melee . | . . . Uniques/NPCs Destroyed . | . . . Combat | -11 -10 -10 -------- Run | Yrd Mat Min Hostile Shots Fired 130 | . 102 28 Missed 35 | . 24 11 Hits 95 | . 78 17 Projectile 95 | . 78 17 Critical Strikes 3 | . 1 2 Damage Taken 1155 | . 904 251 Core 255 | . 156 99 Absorbed by Shields . | . . . Core Remaining (%) 100 | 100 . . Volleys Fired 151 | 20 113 18 Largest 2 | 2 2 2 Hottest 80 | 60 80 80 Shots Fired 297 | 38 225 34 Gun 232 | 38 178 16 Cannon 63 | . 47 16 Launcher 2 | . . 2 Special . | . . . Kinetic 149 | 20 113 16 Thermal 146 | 18 112 16 Explosive 2 | . . 2 Electromagnetic . | . . . Robot Hit Streak 16 | 6 16 10 Robot Miss Streak 4 | 2 4 3 Penetration Max . | . . . Secondary Targets 1 | . 1 . Max Gunslinging Chain 1 | . 1 . Shots Hit Robots 189 | 23 145 21 Core Hits 81 | 12 59 10 Critical Kills . | . . . Critical Parts Destroyed 1 | 1 . . Critical Strikes 1 | 1 . . Destroy 1 | 1 . . Melee Attacks . | . . . Impact . | . . . Slashing . | . . . Piercing . | . . . Sneak Attacks . | . . . Combat Hostiles . | . . . Follow-up Attacks . | . . . Damage Inflicted 2649 | 285 1880 484 Guns 1719 | 285 1338 96 Cannons 717 | . 541 176 Explosions 212 | . . 212 Melee . | . . . Ramming 1 | . 1 . Kinetic 1083 | 160 827 96 Thermal 1353 | 125 1052 176 Explosive 212 | . . 212 Electromagnetic . | . . . Impact . | . . . Slashing . | . . . Piercing . | . . . Highest Corruption . | . . . Average Corruption . | . . . Corruption Purged . | . . . Corruption Blocked . | . . . Overload Shots . | . . . Overflow Damage 8 | . . 8 Projectiles . | . . . Explosions 8 | . . 8 Melee . | . . . Knockbacks . | . . . Impact . | . . . Kinetic . | . . . Secondary . | . . . Self-Inflicted Damage 9 | . . 9 Shots 1 | . . 1 Rammed 1 | . 1 . Targets Rammed 1 | . 1 . Kicked . | . . . Crushed . | . . . Highest Temperature 239 | 20 78 239 Average Temperature 43 | 17 24 81 Received Heat Transfer 579 | . 471 108 Siege Activations . | . . . Martial Activations . | . . . Shielding Activations . | . . . Robots Disrupted . | . . . Combat Hostiles . | . . . Robots Corrupted . | . . . Combat Hostiles . | . . . Parts Fried . | . . . Impact Corruptions . | . . . Robots Melted . | . . . Combat Hostiles . | . . . Parts Melted 1 | . 1 . Heat Transferred 2967 | 275 2322 370 Parts Sabotaged . | . . . Parts Stolen . | . . . Parts Stripped . | . . . Power Chain Reactions . | . . . Alert | -11 -10 -10 ------- Run | Yrd Mat Min Maximum Alert Level . | . . . Low Security (%) 100 | 100 100 100 Level 1 . | . . . Level 2 . | . . . Level 3 . | . . . Level 4 . | . . . Level 5 . | . . . High Security . | . . . Max Security . | . . . Peak Influence 188 | 20 188 122 Initial 9 | . 9 7 Average 71 | 3 76 48 Influence Increases 980 | 55 728 197 Destroy 0b10 Robot/C 560 | . 440 120 Destroy 0b10 Robot/NC 145 | 55 75 15 Destroy Leader 130 | . 110 20 Successful Hack 11 | . 11 . Select Force Hacks 30 | . 30 . Disable Machine 30 | . . 30 Destroy Structure 14 | . 2 12 Partial Spotted 15 | . 15 . Lose Combat Pursuer 45 | . 45 . Influence Decreases 968 | 40 723 205 Entered New Map 19 | . 6 13 Time Decay 929 | 40 697 192 Lost Part 20 | . 20 . Squads Dispatched 5 | . 5 . Investigation 3 | . 3 . Extermination . | . . . Reinforcement 2 | . 2 . Assault . | . . . Garrison . | . . . Intercept . | . . . Searches Triggered . | . . . Construction Impeded . | . . . Haulers Reinforced . | . . . Active Scanning Responses . | . . . Cargo Convoy Interrupts . | . . . Stealth | -11 -10 -10 --------- Run | Yrd Mat Min Distress Signals 5 | . 5 . Communications Jammed . | . . . Distress Signals . | . . . Times Spotted 40 | . 33 7 Peak Tracking Total 4 | . 4 2 Tactical Retreats 2 | . 2 . Traps | -11 -10 -10 ------- Run | Yrd Mat Min Traps Triggered 2 | . 2 . Indirectly . | . . . Trap Hack Attempts . | . . . Triggered . | . . . Disarmed . | . . . Reprogrammed . | . . . Reused . | . . . Traps Extracted . | . . . Installed . | . . . Triggered . | . . . Machines | -11 -10 -10 ---------- Run | Yrd Mat Min Machines Disabled 2 | . . 2 Max in Single Turn 1 | . . 1 Machines Repaired . | . . . Machines Dismantled . | . . . Machines Sabotaged . | . . . Overloaded Fab Kills . | . . . Hacking | -11 -10 -10 --------- Run | Yrd Mat Min Machines Accessed 7 | . 7 . Terminals 6 | . 6 . Fabricators . | . . . Repair Stations . | . . . Recycling Units 1 | . 1 . Scanalyzers . | . . . Garrison Access . | . . . Total Hacks 23 | . 23 . Successful 13 | . 13 . Failed 10 | . 10 . Catastrophic 1 | . 1 . Database Lockouts . | . . . Manual 22 | . 22 . Terminals 22 | . 22 . Fabricators . | . . . Repair Stations . | . . . Recycling Units 1 | . 1 . Scanalyzers . | . . . Garrison Access . | . . . Terminal Hacks 2 | . 2 . Prototype ID Bank 1 | . 1 . Terminal Index 1 | . 1 . Fabricator Hacks . | . . . Repair Station Hacks . | . . . Recycling Unit Hacks . | . . . Scanalyzer . | . . . Garrison Access Hacks . | . . . Unauthorized Hacks 11 | . 11 . Terminals 10 | . 10 . Assimilate 1 | . 1 . Botnet 3 | . 3 . Operators 1 | . 1 . Skim 5 | . 5 . Fabricators . | . . . Repair Stations . | . . . Recycling Units 1 | . 1 . Tunnel 1 | . 1 . Scanalyzers . | . . . Garrison Access . | . . . Data Cores Recovered . | . . . Used . | . . . Hacking Detections 6 | . 6 . Full Trace Events 1 | . 1 . Feedback Events . | . . . Feedback Blocked . | . . . Robot Schematics Acquired . | . . . Robots Built . | . . . Authchips . | . . . Time . | . . . Total Robot Build Rating . | . . . Part Schematics Acquired . | . . . Parts Built . | . . . Authchips . | . . . Time . | . . . Total Part Build Rating . | . . . Part Studies Acquired . | . . . Parts Repaired . | . . . Time . | . . . Parts Recycled . | . . . Recycled Matter . | . . . Retrieved Matter . | . . . Retrieved Components . | . . . Parts Scanalyzed . | . . . Part Schematics Acquired . | . . . Parts Damaged . | . . . Bothacking | -11 -10 -10 ------------ Run | Yrd Mat Min Used RIF Installer . | . . . Robots Hacked . | . . . Non-combat . | . . . Combat . | . . . Robot Hacks Applied . | . . . Relay Couplers Released . | . . . Fabnet Peak Effective % . | . . . Robots Rewired . | . . . Allies Hacked . | . . . Hacks Repelled . | . . . Allies | -11 -10 -10 -------- Run | Yrd Mat Min Total Allies 1 | . 1 . Largest Group 1 | . 1 1 Highest-Rated Group 10 | . 10 10 Highest-Rated Ally 10 | . 10 10 Total Orders . | . . . Ally Attacks . | . . . Total Damage . | . . . Kills . | . . . Allies Corrupted . | . . . Allies Melted . | . . . Intel | -11 -10 -10 ------- Run | Yrd Mat Min Active Infowar (turns) 636 | 2 468 166 Seismic 636 | 2 468 166 Robot Analysis Total . | . . . Derelict Logs Recovered . | . . . Drone Launches . | . . . Drone Recoveries . | . . . Exploration | -11 -10 -10 ------------- Run | Yrd Mat Min Turns Passed 5663 | 231 4964 468 Spaces Moved 1453 | 103 1096 254 Core 4 | 4 . . Treads 1449 | 99 1096 254 Legs . | . . . Wheels . | . . . Hover . | . . . Flight . | . . . Fastest Speed 50 | 50 160 160 Average Speed 159 | 155 160 160 Slowest Speed 160 | 160 160 160 Overloaded Moves . | . . . Propulsion Burnouts . | . . . Robots Hopped . | . . . Potential Cave-ins . | . . . Cave-ins Triggered . | . . . Exploration Rate (%) 55 | 4 98 64 Regions Visited 2 Branch Regions 1 Pre-discovered Areas 1 | . 1 . Known Exits Taken . | . . . Unknown Exits Taken 2 | 1 1 . Scrap Searched . | . . . Spaces Dug 8 | . . 8 Terrain Destroyed 12 | . . 12 Melee . | . . . Projectile . | . . . AOE 12 | . . 12 Terrain Rammed . | . . . Walls Destroyed . | . . . Machines Disabled . | . . . Actions | -11 -10 -10 --------- Run | Yrd Mat Min Total 4498 | 132 4082 284 Wait 2823 | 1 2817 5 Move 1451 | 102 1095 254 Hop . | . . . Pick Up 25 | 2 23 . Fast Attach 8 | 7 . 1 Attach 3 | . 2 1 Detach . | . . . Swap 19 | . 15 4 Drop 17 | . 16 1 Fire 151 | 20 113 18 Melee . | . . . Ram . | . . . Kick . | . . . Crush 1 | . 1 . Escape Stasis . | . . . Rewire . | . . . Trap . | . . . Miscellaneous . | . . . Route ------- -11/Scrapyard -10/Materials (discovered 6 exits: [*Mat x3] / [*Min x2] / [*Sub]) -10/Mines (discovered 3 exits: [*Mat x2] / [*Exi]) History --------- Turn | Location | Event 10 | -11/Scrapyard | Discovered new exit (range 15) 232 | -11/Scrapyard | Entered Materials 330 | -10/Materials | Build established: Mutant 679 | -10/Materials | Discovered new exit (range 6) 839 | -10/Materials | Discovered new exit (range 10) 1012 | -10/Materials | Discovered new exit (range 8) 1057 | -10/Materials | Discovered new exit (range 15) 1462 | -10/Materials | Discovered new exit (range 15) 1555 | -10/Materials | Discovered new exit (range 14) 2081 | -10/Materials | Core integrity fell below 50% 3880 | -10/Materials | Build established: Scavenger-Mutant 5196 | -10/Materials | Entered Mines 5196 | -10/Mines | Accompanied by 1 ally 5216 | -10/Mines | Deemed a non-threat by the Exiles lab entrance 5216 | -10/Mines | Discovered new exit (range 5) 5258 | -10/Mines | Discovered new exit (range 9) 5368 | -10/Mines | Discovered new exit (range 9) 5535 | -10/Mines | Found a Scrap Suit stashed away for nefarious purposes 5653 | -10/Mines | Core integrity fell below 20% 5664 | -10/Mines | Destroyed by Y-45 Defender with Heavy Assault Rifle Last Messages --------------- 05368_ EXIT=FOUND 05376_ K-01 Serf collects debris. 05419_ K-01 Serf cleans the Laser Drill. 05447_ Extracted 3 matter. 05492_ T-07 Excavator destroyed. 05494_ Acquired 2 matter. 05498_ Dropped Heat Sink. 05498_ Acquired Seismic Detector. 05516_ T-07 Excavator destroyed. 05535_ A message is left with an item here: "H4-X0R! I managed to smuggle one out! Take this to the hideout, the fools near Old Recycling think they can use this tech to beat 0b10 one day, and now we just have to find a way to safely deliver this to MAIN.C to get on their good side and convince them to let us into the system." 05649_ Lgt. Treads destroyed. 05654_ Y-45 Defender destroyed. 05655_ Critical hit (Burn: +37). Map ----- +----------------------------------------------------+ | | | | | | | | | | | | | | | | | | | | | | | | | | | | | | | ???????????????????????????????? | | ????????#####??????####????????? | | ???????## #####?## #####????? | | ???????# ### ##???? | | ??????## #???? | | ??###?# ##??? | | ?##" ## #### | | ?#"" # ## | | ?#|| *Y[ #### ##### | | ?#!! %/! ###??## ##???# | | ?#"" #@ ##?????####????# | | ?##" ## ##??????######### | | ??###?### ###??????## ! ## | | ????????# ##????????# = # | | ????????# ##?????????# !%| | | ???????## ##?????????## ### # | | ?????### #??????????## #?#### | | ????## #???????????# #????? | | ????# #???????????# #????? | | ????# ##???????????# #????? | | ????## #????????????# #????? | | ?????## ##???????????? #????? | | ??????## ##?????????????##?????? | | ???????# #?????????????????????? | | ???????# ????????????????????? | | ???????#####???????????????????? | | ???????????????????????????????? | | ???????????????????????????????? | | ???????????????????????????????? | | ???????????????????????????????? | | ???????????????????????????????? | | ???????????????????????????????? | | ???????????????????????????????? | | ???????????????????????????????? | | ???????????????????????????????? | +----------------------------------------------------+ Best States ------------- Heat Dissipation 35 Energy Generation 10 Energy Capacity 250 Matter Stores 300 Matter Capacity 300 Sight Range 16 Terrain Scan Density 10 Evasion (%) 40 Recoil Reduction 2 Item Schematics ----------------- None Robot Schematics ------------------ None Fabricated ------------ Nothing Repaired ---------- Nothing Studied --------- None Alien Tech Used ----------------- None Achievements -------------- None Challenges ------------ None Game ------ Seed NodeThermicBeamcaster Manual? 0 Play Time 00:14:18 Cumulative 372.7 hours Start 2026.03.07 @ 14:24:07 End 2026.03.07 @ 14:36:20 Sessions 1 Manual Loads 0 Difficulty Rogue Special Mode None Game No. 233 Rogue 233 Adventurer 0 Explorer 0 Win Type - Total 14 Types 9/1/2/1/0/0/0/1/0/0 Lore% 93 Gallery% 80 Achievement% 70 Wizard Run 0 Options --------- Layout 1 ASCII 0 Keyboard 0 Movement Mouse Keybinds 0 Fullscreen 2 Font 32/SmallcapsGlow Map View 50x35 Zoom Use 0% Tactical HUD 1 Map Filters NONE Filters NONE Steam 1 RUN: 36765681-07d9-4aa7-be9d-1afb4a4f8cb3